fUST/lending_fUST_20250824
["ID","MTS","AMOUNT","RATE_DAILY","PERIOD"]
[381044446,1755971432029,-237.210927,0.0002536,2]
[381044447,1755971432038,-500.0,0.00025673,2]
[381044448,1755971432047,-500.0,0.00025673,2]
[381044449,1755971432055,-500.0,0.00025673,2]
[381044450,1755971432065,-633.86486829,0.00025673,2]
[381044451,1755971432074,-500.0,0.00025673,2]
[381044452,1755971432084,-500.0,0.00025673,2]
[381044453,1755971432096,-500.0,0.00025673,2]
[381044454,1755971432106,-500.0,0.00025673,2]
[381044455,1755971432115,-500.0,0.00025673,2]
[381044456,1755971432124,-501.77249218,0.00025673,2]
[381044457,1755971432134,-500.0,0.00025673,2]
[381044458,1755971432145,-500.0,0.00025673,2]
[381044459,1755971432154,-23265.50534004,0.00025894,2]
[381044460,1755971432166,-1880.000005,0.00025894,2]
[381044461,1755971432179,-664.44,0.00025894,2]
[381044580,1755971437986,-29.82495323,0.00025894,2]
[381044581,1755971438011,-14355.92754151,0.00025894,2]
[381044582,1755971438020,-259.79739126,0.00025895,2]
[381044583,1755971438032,-500.0,0.00025973,2]
[381044584,1755971438042,-500.0,0.00025973,2]
[381044585,1755971438051,-862.16,0.0002598,3]
[381044586,1755971438060,-235.33,0.0002598,10]
[381044588,1755971438070,-1176.9,0.00025989,2]
[381044589,1755971438080,-21343.70007387,0.0002599,2]
[381044591,1755971438089,-266.43764325,0.00025995,2]
[381044593,1755971438102,-604.62474794,0.00025995,2]
[381044594,1755971438111,-204.63008172,0.00025995,2]
[381044595,1755971438120,-267.90379191,0.00025995,2]
[381044596,1755971438129,-60898.1986716,0.00025996,2]
[381044597,1755971438139,-160.0,0.00026004,2]
[381044598,1755971438148,-300.0,0.00026021,2]
[381044599,1755971438157,-1000.0,0.00026022,2]
[381044600,1755971438167,-1000.0,0.00026022,2]
[381044601,1755971438179,-1000.0,0.00026022,2]
[381044602,1755971438188,-1000.0,0.00026022,2]
[381044603,1755971438197,-1000.0,0.00026022,2]
[381044604,1755971438206,-1000.0,0.00026022,2]
[381044605,1755971438215,-1000.0,0.00026022,2]
[381044606,1755971438225,-1000.0,0.00026022,2]
[381044607,1755971438234,-1000.0,0.00026022,2]
[381044608,1755971438243,-1000.0,0.00026022,2]
[381044609,1755971438252,-1000.0,0.00026022,2]
[381044610,1755971438261,-1000.0,0.00026022,2]
[381044611,1755971438270,-1102.494256,0.00026022,2]
[381044612,1755971438281,-12695.67094824,0.00026046,2]
[381044613,1755971438291,-160.0,0.00026048,2]
[381044614,1755971438302,-160.0,0.00026048,2]
[381044615,1755971438312,-844.50316758,0.00026048,2]
[381044616,1755971438322,-376.14580871,0.00026048,2]
[381044617,1755971438332,-160.0,0.00026048,2]
[381044618,1755971438342,-232.37252479,0.00026048,2]
[381044619,1755971438352,-217.0334113,0.00026048,2]
[381044620,1755971438362,-160.0,0.00026048,2]
[381044621,1755971438373,-160.0,0.00026048,2]
[381044622,1755971438393,-215.94678008,0.00026048,2]
[381044623,1755971438410,-150.3,0.00026054,7]
[381044624,1755971438419,-500.0,0.00026066,2]
[381044625,1755971438429,-160.0,0.00026066,2]
[381044626,1755971438438,-529.05847148,0.00026066,2]
[381044627,1755971438447,-160.0,0.00026066,2]
[381044628,1755971438457,-160.0,0.00026066,2]
[381044629,1755971438466,-500.0,0.00026073,2]
[381044630,1755971438475,-500.0,0.00026073,2]
[381044631,1755971438484,-500.0,0.00026073,2]
[381044632,1755971438494,-388.04767473,0.00026073,2]
[381044633,1755971438504,-276.90028288,0.00026073,2]
[381044634,1755971438513,-500.0,0.00026073,2]
[381044635,1755971438523,-500.0,0.00026073,2]
[381044636,1755971438532,-500.0,0.00026073,2]
[381044637,1755971438541,-499.62629551,0.00026073,2]
[381044638,1755971438550,-500.0,0.00026073,2]
[381044639,1755971438560,-500.0,0.00026073,2]
[381044640,1755971438569,-500.0,0.00026073,2]
[381044641,1755971438578,-500.0,0.00026073,2]
[381044642,1755971438587,-501.721902,0.00026073,2]
[381044643,1755971438596,-500.0,0.00026073,2]
[381044644,1755971438605,-500.22262273,0.00026073,2]
[381044645,1755971438616,-500.72905542,0.00026073,2]
[381044646,1755971438625,-500.0,0.00026073,2]
[381044647,1755971438634,-500.84414476,0.00026073,2]
[381044648,1755971438643,-500.0,0.00026073,2]
[381044649,1755971438653,-500.48816373,0.00026073,2]
[381044650,1755971438662,-500.0,0.00026073,2]
[381044651,1755971438671,-500.0,0.00026073,2]
[381044652,1755971438680,-174.03375128,0.00026073,2]
[381044653,1755971438690,-500.0,0.00026073,2]
[381044654,1755971438699,-500.0,0.00026073,2]
[381044655,1755971438709,-263.06579014,0.00026073,2]
[381044656,1755971438718,-500.0,0.00026073,2]
[381044657,1755971438728,-500.0,0.000261,2]
[381044658,1755971438737,-502.38628705,0.000261,2]
[381044659,1755971438747,-1000.0,0.000261,2]
[381044660,1755971438756,-1000.0,0.000261,2]
[381044661,1755971438766,-1000.0,0.000261,2]
[381044662,1755971438873,-259.79739126,0.00026119,2]
[381044663,1755971438883,-183.07478115,0.00026122,2]
[381044664,1755971438892,-150.3,0.00026154,7]
[381044665,1755971438901,-153.24579756,0.00026203,2]
[381044666,1755971438911,-1000.0,0.00026221,2]
[381044667,1755971438920,-1000.0,0.00026221,2]
[381044668,1755971438929,-1000.0,0.00026221,2]
[381044669,1755971438939,-377.11592273,0.00026221,2]
[381044670,1755971438949,-1000.0,0.00026221,2]
[381044671,1755971438958,-500.0,0.00026221,2]
[381044672,1755971438968,-500.0,0.0002634,2]
[381044673,1755971438978,-259.79739126,0.00026343,2]
[381044674,1755971438987,-500.0,0.00026521,2]
[381044675,1755971438997,-259.79739126,0.00026566,2]
[381044676,1755971439007,-347.39457964,0.00026614,2]
[381044677,1755971439016,-1007.11629469,0.00026621,2]
[381044678,1755971439027,-501.47743025,0.00026621,2]
[381044679,1755971439037,-618.61357223,0.00026621,2]
[381044680,1755971439046,-1000.0,0.00026621,2]
[381044681,1755971439056,-500.0,0.00026621,2]
[381044682,1755971439065,-1000.0,0.00026621,2]
[381044683,1755971439075,-1005.61033,0.00026621,2]
[381044684,1755971439084,-500.0,0.00026621,2]
[381044685,1755971439094,-1000.0,0.00026621,2]
[381044686,1755971439103,-1000.0,0.00026621,2]
[381044687,1755971439113,-1000.0,0.00026621,2]
[381044688,1755971439122,-60898.1986716,0.00026638,2]
[381044689,1755971439132,-1000.0,0.00026648,2]
[381044690,1755971439141,-548.80357061,0.0002666,2]
[381044691,1755971439151,-343.0,0.00026661,2]
[381044692,1755971439161,-500.0,0.00026673,2]
[381044693,1755971439170,-500.0,0.00026673,2]
[381044694,1755971439179,-500.0,0.00026673,2]
[381044695,1755971439189,-500.0,0.00026673,2]
[381044696,1755971439200,-500.0,0.00026673,2]
[381044697,1755971439209,-500.0,0.00026673,2]
[381044698,1755971439218,-501.07308711,0.00026673,2]
[381044699,1755971439227,-522.43496305,0.00026673,2]
[381044700,1755971439236,-500.0,0.00026673,2]
[381044701,1755971439246,-445.98942476,0.00026673,2]
[381044702,1755971439255,-560.96118353,0.00026673,2]
[381044703,1755971439264,-500.0,0.00026673,2]
[381044704,1755971439275,-500.0,0.00026673,2]
[381044705,1755971439285,-500.0,0.00026673,2]
[381044706,1755971439294,-171.71310917,0.00026673,2]
[381044707,1755971439305,-500.0,0.00026673,2]
[381044708,1755971439314,-500.0,0.00026673,2]
[381044709,1755971439324,-6562.5676274,0.0002668,2]
[381044710,1755971439334,-151.0,0.000267,19]
[381044711,1755971439344,-846.26,0.00026709,2]
[381044712,1755971439353,-500.0,0.00026768,2]
[381044713,1755971439363,-500.0,0.00026768,2]
[381044714,1755971439372,-500.0,0.00026768,2]
[381044716,1755971439383,-259.79739126,0.0002679,2]
[381044718,1755971439392,-151.0,0.000268,18]
[381044720,1755971439402,-8044.6454782,0.000268,2]
[381044722,1755971439411,-266.72868781,0.00026806,6]
[381044724,1755971439421,-3022.948484,0.00026849,2]
[381044725,1755971439431,-500.0,0.00026873,2]
[381044728,1755971439448,-150.7924297,0.00026873,2]
[381044730,1755971439463,-500.0,0.00026873,2]
[381044731,1755971439474,-500.0,0.00026873,2]
[381044732,1755971439483,-243592.794686,0.0002689,2]
[381044733,1755971439493,-840.56129632,0.0002689,2]
[381044734,1755971439503,-1172721.14,0.000269,2]
[381044735,1755971439513,-151.0,0.000269,16]
[381044737,1755971439523,-151.0,0.000269,10]
[381044738,1755971439533,-151.0,0.000269,12]
[381044739,1755971439543,-151.0,0.000269,16]
[381044740,1755971439552,-151.0,0.000269,14]
[381044741,1755971439562,-151.0,0.000269,19]
[381044742,1755971439572,-151.0,0.000269,10]
[381044743,1755971439582,-151.0,0.000269,18]
[381044744,1755971439591,-151.0,0.000269,18]
[381044745,1755971439600,-151.0,0.000269,10]
[381044746,1755971439609,-160.0,0.000269,2]
[381044747,1755971439619,-1464.3067657,0.00026978,2]
[381044748,1755971439629,-529.05847148,0.00027,3]
[381044749,1755971439639,-376.14580871,0.00027,3]
[381044750,1755971439648,-1000.0,0.00027168,2]
[381044751,1755971439657,-1486.39074709,0.00027168,2]
[381044752,1755971439670,-504.65042134,0.00027168,2]
[381044753,1755971439679,-500.0,0.00027168,2]
[381044754,1755971439689,-500.0,0.00027196,2]
[381044755,1755971439699,-1000.0,0.00027221,2]
[381044756,1755971439710,-1000.0,0.00027221,2]
[381044757,1755971439720,-1000.0,0.00027221,2]
[381044758,1755971439730,-1000.0,0.00027221,2]
[381044759,1755971439740,-872.0,0.00027373,2]
[381044760,1755971439750,-1000.0,0.00027421,5]
[381044761,1755971439759,-773.71807588,0.00027421,5]
[381044762,1755971439769,-260.0,0.00027448,2]
[381044763,1755971439780,-176.0,0.00027558,2]
[381044764,1755971439790,-1798.03228052,0.00027647,2]
[381044765,1755971439799,-453.57521039,0.00027647,2]
[381044767,1755971439809,-3267.48251357,0.00027647,2]
[381044769,1755971439818,-3772.21884884,0.00027647,2]
[381044770,1755971439827,-602.22597465,0.00027647,2]
[381044772,1755971439837,-300.0,0.00027647,2]
[381044774,1755971439847,-189.66517374,0.00027647,2]
[381044776,1755971439857,-151.0,0.00027647,2]
[381044777,1755971439866,-151.0,0.00027647,2]
[381044778,1755971439876,-151.0,0.00027647,2]
[381044779,1755971439885,-194.72792766,0.00027647,2]
[381044780,1755971439894,-151.0,0.00027647,2]
[381044781,1755971439903,-151.0,0.00027647,2]
[381044782,1755971439912,-151.0,0.00027647,2]
[381044783,1755971439922,-500.0,0.00027647,2]
[381044784,1755971439931,-300.0,0.00027647,2]
[381044785,1755971439941,-151.0,0.00027647,2]
[381044786,1755971439950,-2030.296672,0.00027647,2]
[381044787,1755971439959,-500.0,0.00027647,2]
[381044788,1755971439969,-300.0,0.00027647,2]
[381044789,1755971439978,-500.0,0.00027647,2]
[381044790,1755971439988,-151.0,0.00027647,2]
[381044791,1755971439997,-355.74159952,0.00027647,2]
[381044792,1755971440007,-500.0,0.00027647,2]
[381044793,1755971440016,-151.0,0.00027647,2]
[381044794,1755971440026,-500.0,0.00027647,2]
[381044795,1755971440035,-151.0,0.00027647,2]
[381044796,1755971440045,-500.0,0.00027647,2]
[381044797,1755971440054,-151.0,0.00027647,2]
[381044798,1755971440063,-151.0,0.00027647,2]
[381044799,1755971440072,-151.0,0.00027647,2]
[381044800,1755971440082,-151.0,0.00027647,2]
[381044801,1755971440092,-20633.42279861,0.00027647,2]
[381044802,1755971440106,-151.0,0.00027647,2]
[381044803,1755971440115,-250.0,0.00027647,2]
[381044804,1755971440125,-250.0,0.00027647,2]
[381044805,1755971440135,-261.50208631,0.00027647,2]
[381044806,1755971440146,-2105.41764886,0.00027702,2]
[381044807,1755971440155,-201.64454251,0.00027746,10]
[381044808,1755971440164,-2183.31810187,0.00027757,2]
[381044809,1755971440175,-1500.0,0.00027768,2]
[381044810,1755971440194,-1638.09132734,0.00027768,5]
[381044811,1755971440216,-1500.0,0.00027768,5]
[381044812,1755971440238,-500.0,0.00027773,5]
[381044813,1755971440259,-500.0,0.00027773,5]
[381044814,1755971440272,-500.0,0.00027773,5]
[381044815,1755971440281,-500.0,0.00027773,5]
[381044816,1755971440291,-157.296981,0.00027773,2]
[381044817,1755971440304,-157.296981,0.0002781,2]
[381044818,1755971440313,-2264.10087164,0.00027812,2]
[381044819,1755971440323,-157.296981,0.00027846,2]
[381044820,1755971440332,-2347.87260389,0.00027867,2]
[381044821,1755971440341,-2434.74389024,0.00027922,2]
[381044822,1755971440431,-2524.82941417,0.00027977,2]
[381044823,1755971440441,-360.0,0.00027996,2]
[381044824,1755971440451,-529.05847148,0.00028,10]
[381044825,1755971440460,-529.05847148,0.00028,10]
[381044826,1755971440470,-376.14580871,0.00028,10]
[381044827,1755971440480,-376.14580871,0.00028,10]
[381044828,1755971440489,-2618.2481025,0.00028032,2]
[381044829,1755971440498,-2715.12328229,0.00028087,2]
[381044830,1755971440507,-500.0,0.00028089,2]
[381044831,1755971440516,-155.87,0.000281,7]
[381044832,1755971440526,-2815.58284374,0.00028142,2]
[381044833,1755971440535,-1176.9,0.00028181,4]
[381044834,1755971440544,-201.93286099,0.00028195,2]
[381044835,1755971440554,-2919.75940895,0.00028197,2]
[381044836,1755971440564,-176.0,0.00028205,7]
[381044837,1755971440573,-3027.79050709,0.00028252,2]
[381044838,1755971440582,-168.0,0.00028271,2]
[381044839,1755971440591,-3139.81875585,0.00028307,2]
[381044840,1755971440600,-1260.39699586,0.00028316,2]
[381044841,1755971440609,-2000.0,0.00028316,5]
[381044842,1755971440618,-500.0,0.00028321,5]
[381044843,1755971440627,-3255.99204981,0.00028362,2]
[381044844,1755971440637,-493218.57341751,0.000284,2]
[381044845,1755971440938,-191120.26990758,0.000284,2]
[381044846,1755971440962,-425944.81647582,0.000284,2]
[381044847,1755971440971,-393.46211216,0.00028417,2]
[381044848,1755971440980,-800.0,0.0002849,2]
[381044849,1755971440989,-500.0,0.00028532,2]
[381044850,1755971440998,-266.72868781,0.00028533,10]
[381044851,1755971441008,-360.0,0.00028544,2]
[381044852,1755971441018,-181.321213,0.00028663,2]
[381044853,1755971441029,-800.0,0.00028666,2]
[381044854,1755971441038,-151.0,0.000287,18]
[381044855,1755971441047,-413.0,0.000287,30]
[381044856,1755971441056,-3140.29,0.00028732,4]
[381044857,1755971441066,-176.0,0.00028739,2]
[381044858,1755971441075,-209.40437684,0.00028743,2]
[381044859,1755971441084,-168.0,0.00028748,2]
[381044860,1755971441094,-150.31,0.00028761,15]
[381044861,1755971441103,-500.0,0.00028773,5]
[381044862,1755971441114,-500.0,0.00028773,5]
[381044863,1755971441123,-500.0,0.00028773,5]
[381044864,1755971441133,-500.0,0.00028773,5]
[381044865,1755971441142,-1000.0,0.00028773,5]
[381044866,1755971441151,-913841.73991656,0.00028789,20]
[381044867,1755971441161,-1134.56177475,0.00028789,5]
[381044868,1755971441171,-84042.09167781,0.00028789,2]
[381044869,1755971441182,-6396.0,0.00028789,5]
[381044870,1755971441193,-8000.0,0.00028789,2]
[381044871,1755971441202,-1543.08,0.00028789,2]
[381044872,1755971441211,-150.0,0.00028789,2]
[381044873,1755971441220,-200.0,0.00028789,10]
[381044874,1755971441232,-16043.69,0.000288,2]
[381044875,1755971441242,-2849.63,0.000288,7]
[381044876,1755971441251,-1126.42,0.000288,7]
[381044877,1755971441359,-168.0,0.00028814,2]
[381044878,1755971441368,-150.31,0.00028861,15]
[381044879,1755971441378,-168.0,0.00028923,2]
[381044880,1755971441387,-150.31,0.00028961,15]
[381044881,1755971441396,-177.0,0.00028972,2]
[381044882,1755971441406,-168.0,0.00029004,2]
[381044883,1755971441415,-17741.16824615,0.00029016,2]
[381044884,1755971441424,-200.0,0.0002905,10]
[381044885,1755971441433,-150.31,0.00029061,15]
[381044886,1755971441442,-168.0,0.00029072,7]
[381044887,1755971441452,-150.31,0.00029161,15]
[381044888,1755971441462,-150.31,0.00029261,15]
[381044889,1755971441471,-217.15233878,0.00029291,2]
[381044890,1755971441480,-150.31,0.00029361,15]
[381044891,1755971441490,-168.0,0.00029387,2]
[381044892,1755971441499,-168.0,0.00029435,2]
[381044893,1755971441509,-176.0,0.00029437,2]
[381044894,1755971441519,-168.0,0.0002944,2]
[381044895,1755971441528,-157.296981,0.00029444,3]
[381044896,1755971441538,-150.31,0.00029461,15]
[381044897,1755971441547,-168.0,0.0002949,2]
[381044898,1755971441557,-177.0,0.00029492,7]
[381044899,1755971441566,-150.31,0.00029561,15]
[381044900,1755971441576,-168.0,0.00029587,7]
[381044901,1755971441585,-2002.06329146,0.00029595,5]
[381044902,1755971441595,-168.0,0.00029603,2]
[381044903,1755971441604,-150.31,0.00029661,15]
[381044904,1755971441614,-1953.0,0.00029698,2]
[381044905,1755971441623,-176.0,0.000297,2]
[381044906,1755971441633,-168.0,0.00029735,7]
[381044907,1755971441643,-150.31,0.00029761,15]
[381044908,1755971441652,-168.0,0.00029788,2]
[381044909,1755971441662,-554.6,0.00029789,120]
[381044910,1755971441671,-168.0,0.00029837,7]
[381044911,1755971441680,-177.44328439,0.00029839,2]
[381044912,1755971441690,-200.0,0.00029857,10]
[381044913,1755971441699,-150.68649661,0.00029861,15]
[381044914,1755971441708,-4000.0,0.0003,4]
[381044915,1755971441718,-217.40260384,0.00030017,7]
[381044916,1755971441727,-1762.0,0.00030017,7]
[381044917,1755971441736,-1762.0,0.00030017,7]
[381044918,1755971441747,-1765.0,0.00030017,7]
[381044919,1755971441756,-2849.63,0.000301,7]
[381044920,1755971441765,-1126.42,0.000301,7]
[381044921,1755971441775,-168.0,0.00030137,2]
[381044922,1755971441785,-973.0,0.00030158,2]
[381044923,1755971441794,-2154.0,0.00030158,2]
[381044924,1755971441804,-637.0,0.00030158,2]
[381044925,1755971441813,-356.73797255,0.00030189,10]
[381044926,1755971441822,-200.0,0.00030189,10]
[381044927,1755971441831,-16043.69,0.000302,2]
[381044928,1755971441845,-266.72868781,0.00030259,13]
[381044929,1755971441854,-1176.9,0.00030373,6]
[381044930,1755971441863,-157.296981,0.00030777,10]
[381044931,1755971441872,-2200.0,0.00030899,2]
[381044932,1755971441882,-646.0,0.000309,2]
[381044933,1755971441891,-157.296981,0.00030975,6]
[381044934,1755971441901,-151.0,0.00031,14]
[381044935,1755971441912,-2849.63,0.00031,7]
[381044936,1755971441921,-160.0,0.00031,7]
[381044937,1755971441931,-529.05847148,0.00031,7]
[381044938,1755971441941,-417.15472785,0.00031,7]
[381044939,1755971441950,-376.14580871,0.00031,7]
[381044940,1755971441960,-217.0334113,0.00031,7]
[381044941,1755971441969,-844.50316758,0.00031,7]
[381044942,1755971441978,-232.37252479,0.00031,7]
[381044943,1755971441987,-164.628817,0.00031311,2]
[381044944,1755971441996,-500.0,0.00031474,7]
[381044945,1755971442005,-157.296981,0.00031616,10]
[381044946,1755971442015,-157.296981,0.00031696,3]
[381044947,1755971442024,-155.87,0.000317,7]
[381044948,1755971442033,-157.296981,0.00031775,6]
[381044949,1755971442042,-266.72868781,0.00031986,17]
[381044950,1755971442051,-157.296981,0.00032012,20]
[381044951,1755971442059,-2849.63,0.000324,7]
[381044952,1755971442068,-1126.42,0.000324,7]
[381044953,1755971442078,-157.296981,0.00032454,10]
[381044954,1755971442088,-1176.9,0.00032565,8]
[381044955,1755971442100,-157.296981,0.00032576,6]
[381044956,1755971442109,-500.0,0.00032877,5]
[381044957,1755971442118,-249.97,0.0003288,30]
[381044958,1755971442127,-207.00296852,0.0003288,30]
[381044959,1755971442137,-207.0,0.0003288,30]
[381044960,1755971442147,-167.23641588,0.00033014,30]
[381044961,1755971442156,-166.84868723,0.00033014,30]
[381044962,1755971442165,-651.04437683,0.00033058,2]
[381044963,1755971442175,-202.68736873,0.00033089,10]
[381044964,1755971442184,-16043.69,0.000331,14]
[381044965,1755971442193,-2154.0,0.00033158,2]
[381044966,1755971442202,-637.0,0.00033158,2]
[381044967,1755971442212,-181.321213,0.00033229,2]
[381044968,1755971442222,-161.00230885,0.0003325,30]
[381044969,1755971442236,-4000.0,0.00033333,4]
[381044970,1755971442245,-166.84868723,0.00033342,30]
[381044971,1755971442255,-2849.63,0.000334,14]
[381044972,1755971442264,-167.23641588,0.00033452,30]
[381044973,1755971442273,-151.0,0.000335,13]
[381044974,1755971442283,-386.9439334,0.00033528,30]
[381044975,1755971442293,-1000.0,0.00033565,2]
[381044976,1755971442303,-1015.79573009,0.00033566,15]
[381044977,1755971442312,-157.296981,0.00033648,20]
[381044978,1755971442322,-294.0594923,0.00033665,30]
[381044979,1755971442331,-323.3484612,0.00033665,30]
[381044980,1755971442341,-581.3595559,0.00033665,30]
[381044981,1755971442352,-581.3595559,0.00033665,30]
[381044982,1755971442363,-581.3595559,0.00033665,30]
[381044983,1755971442373,-581.3595559,0.00033665,30]
[381044984,1755971442383,-581.3595559,0.00033665,30]
[381044985,1755971442392,-581.3595559,0.00033665,30]
[381044986,1755971442401,-581.3595559,0.00033665,30]
[381044987,1755971442412,-581.3595559,0.00033665,30]
[381044988,1755971442421,-581.3595559,0.00033665,30]
[381044989,1755971442430,-581.3595559,0.00033665,30]
[381044990,1755971442440,-581.3595559,0.00033665,30]
[381044991,1755971442450,-576.2339523,0.00033665,30]
[381044992,1755971442459,-157.296981,0.00033669,30]
[381044993,1755971442470,-166.84868723,0.00033699,30]
[381044995,1755971442480,-266.72868781,0.00033712,21]
[381044996,1755971442490,-651.04437679,0.00033818,2]
[381044997,1755971442499,-167.23641588,0.0003389,30]
[381044998,1755971442508,-2276.29659582,0.00033897,2]
[381044999,1755971442518,-153.8265696,0.00033939,30]
[381045001,1755971442528,-157.296981,0.00033948,3]
[381045003,1755971442538,-844.50316758,0.00034,30]
[381045004,1755971442548,-232.37252479,0.00034,30]
[381045005,1755971442558,-306.0,0.00034005,30]
[381045007,1755971442568,-166.84868723,0.00034055,30]
[381045008,1755971442668,-167.23641588,0.00034329,30]
[381045009,1755971442678,-2849.63,0.000344,14]
[381045010,1755971442687,-1126.42,0.000344,7]
[381045011,1755971442697,-166.84868723,0.00034411,30]
[381045012,1755971442706,-87364.53803773,0.00034487,4]
[381045013,1755971442716,-651.04437679,0.00034578,2]
[381045014,1755971442725,-194.42654677,0.0003458,30]
[381045015,1755971442734,-161.00230885,0.0003458,30]
[381045016,1755971442743,-1176.9,0.00034756,120]
[381045017,1755971442753,-167.23641588,0.00034767,30]
[381045018,1755971442763,-166.84868723,0.00034767,30]
[381045019,1755971442772,-16043.69,0.000349,14]
[381045020,1755971442782,-160.0,0.00035,30]
[381045021,1755971442791,-529.05847148,0.00035,30]
[381045022,1755971442800,-417.15472785,0.00035,30]
[381045023,1755971442809,-376.14580871,0.00035,30]
[381045024,1755971442818,-217.0334113,0.00035,30]
[381045025,1755971442828,-157.296981,0.00035284,20]
[381045026,1755971442837,-651.04437679,0.00035339,2]
[381045027,1755971442847,-266.72868781,0.00035439,24]
[381045028,1755971442856,-900.0,0.00035611,7]
[381045029,1755971442866,-151.0,0.00035643,30]
[381045030,1755971442876,-158.7577131,0.00035836,7]
[381045031,1755971442885,-151.0,0.00035836,7]
[381045032,1755971442895,-151.0,0.00035836,7]
[381045033,1755971442905,-151.0,0.00035836,7]
[381045034,1755971442914,-151.0,0.00035836,7]
[381045035,1755971442923,-500.0,0.00035836,7]
[381045036,1755971442933,-500.0,0.00035836,7]
[381045037,1755971442942,-151.0,0.00035836,7]
[381045038,1755971442952,-151.0,0.00035836,7]
[381045039,1755971442962,-151.0,0.00035836,7]
[381045040,1755971442971,-151.0,0.00035836,7]
[381045041,1755971442982,-151.0,0.00035836,7]
[381045042,1755971442992,-151.0,0.00035836,7]
[381045043,1755971443002,-151.0,0.00035836,7]
[381045044,1755971443012,-151.0,0.00035836,7]
[381045045,1755971443023,-248.50490239,0.00035836,7]
[381045046,1755971443033,-151.0,0.00035836,7]
[381045047,1755971443043,-187.0184849,0.00035836,7]
[381045048,1755971443053,-151.28687626,0.00035836,7]
[381045049,1755971443062,-151.0,0.00035836,7]
[381045050,1755971443072,-151.0,0.00035836,7]
[381045051,1755971443082,-151.0,0.00035836,7]
[381045052,1755971443091,-151.0,0.00035836,7]
[381045053,1755971443101,-151.0,0.00035836,7]
[381045054,1755971443111,-151.0,0.00035836,7]
[381045055,1755971443120,-151.0,0.00035836,7]
[381045056,1755971443129,-151.0,0.00035836,7]
[381045057,1755971443139,-153.08576219,0.00035836,7]
[381045058,1755971443149,-151.0,0.00035836,7]
[381045059,1755971443158,-151.0,0.00035836,7]
[381045060,1755971443168,-151.30909357,0.00035836,7]
[381045061,1755971443177,-151.0,0.00035836,7]
[381045062,1755971443186,-151.0,0.00035836,7]
[381045063,1755971443195,-151.0,0.00035836,7]
[381045064,1755971443204,-500.0,0.00035836,7]
[381045066,1755971443214,-151.2023969,0.00035836,2]
[381045067,1755971443227,-151.0,0.00035836,7]
[381045068,1755971443246,-151.0,0.00035836,7]
[381045069,1755971443263,-151.0,0.00035836,7]
[381045070,1755971443283,-173.0,0.000359,14]
[381045071,1755971443298,-173.0,0.000359,14]
[381045072,1755971443315,-173.0,0.000359,14]
[381045073,1755971443332,-173.0,0.000359,14]
[381045074,1755971443350,-175.29422423,0.000359,14]
[381045075,1755971443370,-288.35200594,0.000359,14]
[381045076,1755971443386,-326.0,0.000359,14]
[381045077,1755971443406,-326.0,0.000359,14]
[381045078,1755971443420,-326.0,0.000359,14]
[381045079,1755971443436,-326.0,0.000359,14]
[381045081,1755971443451,-326.0,0.000359,14]
[381045084,1755971443466,-326.0,0.000359,14]
[381045086,1755971443478,-326.0,0.000359,14]
[381045087,1755971443493,-326.0,0.000359,14]
[381045088,1755971443507,-326.0,0.000359,14]
[381045090,1755971443525,-326.0,0.000359,14]